[Event "January 9 Early 2024"]
[Site "https://www.chess.com"]
[Date "2024.01.11"]
[Round "7"]
[White "Aadit Bhatia"]
[Black "Aradhya, Garg"]
[Result "0-1"]
[Board "18"]
[TimeControl "180+1"]
[WhiteFideId "25088955"]
[BlackFideId "25006746"]
[WhiteElo "2456"]
[BlackElo "2725"]
[WhiteTeam "IND"]
[BlackTeam "IND"]
[WhiteClock "0:00:53"]
[BlackClock "0:02:09"]

1. e4 {[%clk 0:03:00]}  e5 {[%clk 0:02:59]} 2. Nf3 {[%clk 0:02:58]}  Nc6 {[%clk 0:03:00]} 3. Bb5 {[%clk 0:02:58]}  a6 {[%clk 0:02:59]} 4. Ba4 {[%clk 0:02:58]}  Nf6 {[%clk 0:03:00]} 5. O-O {[%clk 0:02:59]}  Be7 {[%clk 0:03:00]} 6. Re1 {[%clk 0:02:57]}  b5 {[%clk 0:03:00]} 7. Bb3 {[%clk 0:02:57]}  O-O {[%clk 0:03:00]} 8. c3 {[%clk 0:02:56]}  d5 {[%clk 0:03:00]} 9. d3 {[%clk 0:02:51]}  dxe4 {[%clk 0:02:54]} 10. dxe4 {[%clk 0:02:51]}  Qxd1 {[%clk 0:02:55]} 11. Bxd1 {[%clk 0:02:51]}  Be6 {[%clk 0:02:55]} 12. Nbd2 {[%clk 0:02:48]}  h6 {[%clk 0:02:53]} 13. Bb3 {[%clk 0:02:42]}  Bxb3 {[%clk 0:02:51]} 14. Nxb3 {[%clk 0:02:42]}  Rfd8 {[%clk 0:02:51]} 15. h3 {[%clk 0:02:37]}  Rab8 {[%clk 0:02:45]} 16. Be3 {[%clk 0:01:57]}  Nxe4 {[%clk 0:02:38]} 17. Bxh6 {[%clk 0:01:57]}  Nxc3 {[%clk 0:02:29]} 18. bxc3 {[%clk 0:01:29]}  gxh6 {[%clk 0:02:27]} 19. Nxe5 {[%clk 0:01:29]}  Nxe5 {[%clk 0:02:27]} 20. Rxe5 {[%clk 0:01:29]}  Bf6 {[%clk 0:02:23]} 21. Rf5 {[%clk 0:01:27]}  Bxc3 {[%clk 0:02:22]} 22. Rc1 {[%clk 0:01:27]}  b4 {[%clk 0:02:22]} 23. a3 {[%clk 0:01:22]}  Bb2 {[%clk 0:02:14]} 24. Rxc7 {[%clk 0:01:20]}  bxa3 {[%clk 0:02:15]} 25. Nc1 {[%clk 0:01:05]}  Rd1+ {[%clk 0:02:12]} 26. Kh2 {[%clk 0:01:05]}  Rxc1 {[%clk 0:02:12]} 27. Rxc1 {[%clk 0:00:56]}  Bxc1 {[%clk 0:02:12]} 28. Ra5 {[%clk 0:00:57]}  Rb6 {[%clk 0:02:10]} 29. Rc5 {[%clk 0:00:54]}  a2 {[%clk 0:02:09]} 30. Rxc1 {[%clk 0:00:53]}  Rb1 {[%clk 0:02:09]} 31. Rc8+ {[%clk 0:00:53]}  Kg7 {[%clk 0:02:09]} 0-1

[Event "January 9 Early 2024"]
[Site "https://www.chess.com"]
[Date "2024.01.11"]
[Round "7"]
[White "Paravyan, David"]
[Black "Rohith Krishna S"]
[Result "1-0"]
[Board "20"]
[TimeControl "180+1"]
[WhiteFideId "4194985"]
[BlackFideId "46617051"]
[WhiteElo "3010"]
[BlackElo "2834"]
[WhiteTeam "FID"]
[BlackTeam "IND"]
[WhiteClock "0:01:42"]
[BlackClock "0:00:46"]

1. e4 {[%clk 0:03:00]}  e5 {[%clk 0:02:58]} 2. Nf3 {[%clk 0:03:01]}  Nc6 {[%clk 0:02:58]} 3. Bc4 {[%clk 0:03:01]}  Bc5 {[%clk 0:02:57]} 4. Nc3 {[%clk 0:03:00]}  Nf6 {[%clk 0:02:58]} 5. d3 {[%clk 0:03:01]}  O-O {[%clk 0:02:58]} 6. h3 {[%clk 0:02:59]}  h6 {[%clk 0:02:59]} 7. g4 {[%clk 0:02:59]}  d6 {[%clk 0:02:52]} 8. g5 {[%clk 0:02:59]}  hxg5 {[%clk 0:02:50]} 9. Bxg5 {[%clk 0:02:56]}  Be6 {[%clk 0:02:50]} 10. Nd5 {[%clk 0:02:55]}  Bxd5 {[%clk 0:02:43]} 11. Bxd5 {[%clk 0:02:56]}  Nb4 {[%clk 0:02:26]} 12. Bb3 {[%clk 0:02:54]}  c6 {[%clk 0:02:15]} 13. Rg1 {[%clk 0:02:47]}  d5 {[%clk 0:02:14]} 14. Nh4 {[%clk 0:02:30]}  dxe4 {[%clk 0:01:56]} 15. Bh6 {[%clk 0:02:31]}  Qd4 {[%clk 0:01:38]} 16. Be3 {[%clk 0:02:08]}  Qxb2 {[%clk 0:01:26]} 17. Bxc5 {[%clk 0:02:08]}  Qc3+ {[%clk 0:01:12]} 18. Kf1 {[%clk 0:02:09]}  Qxc5 {[%clk 0:01:12]} 19. Nf5 {[%clk 0:02:09]}  Kh8 {[%clk 0:00:55]} 20. Rxg7 {[%clk 0:02:06]}  Rg8 {[%clk 0:00:54]} 21. Rxf7 {[%clk 0:01:42]}  Rg6 {[%clk 0:00:46]} 22. Rxf6 {[%clk 0:01:42]} 1-0

[Event "January 9 Early 2024"]
[Site "https://www.chess.com"]
[Date "2024.01.11"]
[Round "7"]
[White "Aashman Gupta"]
[Black "Averchenko, Sergej"]
[Result "1-0"]
[Board "21"]
[TimeControl "180+1"]
[WhiteFideId "45022500"]
[BlackFideId "4131533"]
[WhiteElo "2477"]
[BlackElo "2002"]
[WhiteTeam "IND"]
[BlackTeam "RUS"]
[WhiteClock "0:01:48"]
[BlackClock "0:01:03"]

1. b3 {[%clk 0:02:46]}  Nf6 {[%clk 0:02:58]} 2. Bb2 {[%clk 0:02:46]}  g6 {[%clk 0:02:58]} 3. Bxf6 {[%clk 0:02:46]}  exf6 {[%clk 0:02:58]} 4. Nf3 {[%clk 0:02:45]}  Bg7 {[%clk 0:02:58]} 5. e3 {[%clk 0:02:45]}  O-O {[%clk 0:02:59]} 6. d4 {[%clk 0:02:46]}  d5 {[%clk 0:02:57]} 7. Be2 {[%clk 0:02:46]}  c6 {[%clk 0:02:55]} 8. O-O {[%clk 0:02:47]}  Bg4 {[%clk 0:02:52]} 9. c4 {[%clk 0:02:46]}  dxc4 {[%clk 0:02:27]} 10. bxc4 {[%clk 0:02:45]}  Nd7 {[%clk 0:02:22]} 11. Nc3 {[%clk 0:02:43]}  Nb6 {[%clk 0:02:20]} 12. Qb3 {[%clk 0:02:41]}  Qd7 {[%clk 0:02:07]} 13. a4 {[%clk 0:02:38]}  Nc8 {[%clk 0:02:04]} 14. a5 {[%clk 0:02:35]}  Ne7 {[%clk 0:02:01]} 15. Na4 {[%clk 0:02:34]}  Rab8 {[%clk 0:01:54]} 16. Nc5 {[%clk 0:02:34]}  Qc7 {[%clk 0:01:54]} 17. Rfb1 {[%clk 0:02:29]}  h5 {[%clk 0:01:38]} 18. h3 {[%clk 0:02:29]}  Bc8 {[%clk 0:01:37]} 19. Na6 {[%clk 0:02:15]}  bxa6 {[%clk 0:01:27]} 20. Qxb8 {[%clk 0:02:13]}  Qxb8 {[%clk 0:01:24]} 21. Rxb8 {[%clk 0:02:12]}  c5 {[%clk 0:01:20]} 22. d5 {[%clk 0:02:10]}  f5 {[%clk 0:01:10]} 23. Rab1 {[%clk 0:02:09]}  Bc3 {[%clk 0:01:10]} 24. Bd1 {[%clk 0:01:51]}  Bxa5 {[%clk 0:01:07]} 25. Ba4 {[%clk 0:01:49]}  Bb6 {[%clk 0:01:03]} 26. d6 {[%clk 0:01:48]} 1-0

[Event "January 9 Early 2024"]
[Site "https://www.chess.com"]
[Date "2024.01.11"]
[Round "7"]
[White "Gatterer, Florian"]
[Black "Abdulrahman Mohammad, Al Taher"]
[Result "1/2-1/2"]
[Board "22"]
[TimeControl "180+1"]
[WhiteFideId "811688"]
[BlackFideId "9310258"]
[WhiteElo "2421"]
[BlackElo "2246"]
[WhiteTeam "ITA"]
[BlackTeam "UAE"]
[WhiteClock "0:01:37"]
[BlackClock "0:00:50"]

1. e4 {[%clk 0:03:00]}  c5 {[%clk 0:03:00]} 2. Nf3 {[%clk 0:02:59]}  Nc6 {[%clk 0:02:59]} 3. Bb5 {[%clk 0:02:58]}  g6 {[%clk 0:02:59]} 4. Bxc6 {[%clk 0:02:56]}  dxc6 {[%clk 0:02:59]} 5. d3 {[%clk 0:02:57]}  Bg7 {[%clk 0:03:00]} 6. O-O {[%clk 0:02:57]}  Nf6 {[%clk 0:03:00]} 7. h3 {[%clk 0:02:57]}  Nd7 {[%clk 0:03:00]} 8. Nc3 {[%clk 0:02:54]}  e5 {[%clk 0:02:59]} 9. Bg5 {[%clk 0:02:54]}  f6 {[%clk 0:02:58]} 10. Be3 {[%clk 0:02:54]}  b6 {[%clk 0:02:59]} 11. Qd2 {[%clk 0:02:54]}  Nf8 {[%clk 0:02:57]} 12. Bh6 {[%clk 0:02:54]}  Qe7 {[%clk 0:02:52]} 13. Bxg7 {[%clk 0:02:53]}  Qxg7 {[%clk 0:02:53]} 14. Nh2 {[%clk 0:02:53]}  Ne6 {[%clk 0:02:51]} 15. Ne2 {[%clk 0:02:52]}  O-O {[%clk 0:02:32]} 16. f4 {[%clk 0:02:51]}  exf4 {[%clk 0:02:23]} 17. Nxf4 {[%clk 0:02:50]}  f5 {[%clk 0:02:22]} 18. exf5 {[%clk 0:02:26]}  Nxf4 {[%clk 0:02:14]} 19. Rxf4 {[%clk 0:02:17]}  Bxf5 {[%clk 0:02:12]} 20. Qc3 {[%clk 0:02:12]}  Qxc3 {[%clk 0:01:49]} 21. bxc3 {[%clk 0:02:12]}  Rae8 {[%clk 0:01:49]} 22. Rf2 {[%clk 0:02:05]}  Kg7 {[%clk 0:01:36]} 23. c4 {[%clk 0:02:02]}  Re3 {[%clk 0:01:29]} 24. Raf1 {[%clk 0:01:44]}  Rfe8 {[%clk 0:01:15]} 25. Rf3 {[%clk 0:01:37]}  Re2 {[%clk 0:01:09]} 26. R3f2 {[%clk 0:01:37]}  R2e3 {[%clk 0:01:04]} 27. Rf3 {[%clk 0:01:37]}  Re2 {[%clk 0:00:54]} 28. R3f2 {[%clk 0:01:37]}  R2e3 {[%clk 0:00:50]} 1/2-1/2

[Event "January 9 Early 2024"]
[Site "https://www.chess.com"]
[Date "2024.01.11"]
[Round "7"]
[White "Ter-Sahakyan, Samvel"]
[Black "Zavgorodniy, Sergiy"]
[Result "1-0"]
[Board "25"]
[TimeControl "180+1"]
[WhiteFideId "13302531"]
[BlackFideId "14110148"]
[WhiteElo "2903"]
[BlackElo "2619"]
[WhiteTeam "ARM"]
[BlackTeam "UKR"]
[WhiteClock "0:01:03"]
[BlackClock "0:01:21"]

1. d4 {[%clk 0:03:00]}  Nf6 {[%clk 0:02:59]} 2. c4 {[%clk 0:03:00]}  e6 {[%clk 0:02:59]} 3. Nc3 {[%clk 0:03:00]}  Bb4 {[%clk 0:02:57]} 4. a3 {[%clk 0:03:00]}  Bxc3+ {[%clk 0:02:56]} 5. bxc3 {[%clk 0:03:01]}  Nc6 {[%clk 0:02:56]} 6. f3 {[%clk 0:03:01]}  d5 {[%clk 0:02:53]} 7. cxd5 {[%clk 0:02:58]}  exd5 {[%clk 0:02:53]} 8. e3 {[%clk 0:02:59]}  Bf5 {[%clk 0:02:50]} 9. Ne2 {[%clk 0:02:56]}  h5 {[%clk 0:02:48]} 10. Ng3 {[%clk 0:02:52]}  Bg6 {[%clk 0:02:47]} 11. Bd3 {[%clk 0:02:52]}  h4 {[%clk 0:02:47]} 12. Ne2 {[%clk 0:02:46]}  Qd7 {[%clk 0:02:35]} 13. O-O {[%clk 0:02:35]}  Na5 {[%clk 0:02:26]} 14. Bxg6 {[%clk 0:02:26]}  fxg6 {[%clk 0:02:25]} 15. Nf4 {[%clk 0:02:24]}  g5 {[%clk 0:02:20]} 16. Ng6 {[%clk 0:02:24]}  Rg8 {[%clk 0:02:12]} 17. Ne5 {[%clk 0:02:23]}  Qe6 {[%clk 0:02:09]} 18. Qa4+ {[%clk 0:02:18]}  Nc6 {[%clk 0:02:09]} 19. Rb1 {[%clk 0:02:18]}  Nd7 {[%clk 0:02:02]} 20. Rxb7 {[%clk 0:02:10]}  Ncxe5 {[%clk 0:01:51]} 21. dxe5 {[%clk 0:02:10]}  h3 {[%clk 0:01:51]} 22. Rxc7 {[%clk 0:02:07]}  hxg2 {[%clk 0:01:49]} 23. Rd1 {[%clk 0:02:01]}  Rh8 {[%clk 0:01:46]} 24. Qg4 {[%clk 0:01:25]}  Qxg4 {[%clk 0:01:43]} 25. fxg4 {[%clk 0:01:26]}  Nxe5 {[%clk 0:01:41]} 26. Rxd5 {[%clk 0:01:26]}  Nxg4 {[%clk 0:01:31]} 27. Rxg5 {[%clk 0:01:25]}  Nxh2 {[%clk 0:01:31]} 28. Kxg2 {[%clk 0:01:23]}  Rd8 {[%clk 0:01:23]} 29. Rgxg7 {[%clk 0:01:08]}  Rd1 {[%clk 0:01:23]} 30. Rc8+ {[%clk 0:01:06]}  Rd8 {[%clk 0:01:20]} 31. Rxd8+ {[%clk 0:01:06]}  Kxd8 {[%clk 0:01:21]} 32. e4 {[%clk 0:01:03]} 1-0

[Event "January 9 Early 2024"]
[Site "https://www.chess.com"]
[Date "2024.01.11"]
[Round "7"]
[White "McCoy, Owen"]
[Black "Bardyk, Artem"]
[Result "0-1"]
[Board "26"]
[TimeControl "180+1"]
[WhiteFideId "30924502"]
[BlackFideId "34349979"]
[WhiteElo "2607"]
[BlackElo "2777"]
[WhiteTeam "USA"]
[BlackTeam "RUS"]
[WhiteClock "0:00:04"]
[BlackClock "0:01:57"]

1. d4 {[%clk 0:03:00]}  d5 {[%clk 0:02:59]} 2. c4 {[%clk 0:03:00]}  e6 {[%clk 0:02:59]} 3. Nf3 {[%clk 0:03:01]}  Nf6 {[%clk 0:02:59]} 4. g3 {[%clk 0:03:01]}  dxc4 {[%clk 0:02:59]} 5. Bg2 {[%clk 0:03:02]}  Nbd7 {[%clk 0:03:00]} 6. O-O {[%clk 0:02:35]}  c6 {[%clk 0:02:59]} 7. a4 {[%clk 0:02:10]}  a5 {[%clk 0:02:58]} 8. Qc2 {[%clk 0:01:51]}  Nd5 {[%clk 0:02:52]} 9. Qxc4 {[%clk 0:01:37]}  Be7 {[%clk 0:02:51]} 10. Bf4 {[%clk 0:01:23]}  Nb4 {[%clk 0:02:44]} 11. Rd1 {[%clk 0:01:10]}  b6 {[%clk 0:02:43]} 12. Qc1 {[%clk 0:00:59]}  Ba6 {[%clk 0:02:41]} 13. Nc3 {[%clk 0:01:00]}  O-O {[%clk 0:02:39]} 14. Ne5 {[%clk 0:00:32]}  Rc8 {[%clk 0:02:26]} 15. Nxd7 {[%clk 0:00:26]}  Qxd7 {[%clk 0:02:25]} 16. Qd2 {[%clk 0:00:26]}  Rfd8 {[%clk 0:02:20]} 17. b3 {[%clk 0:00:20]}  c5 {[%clk 0:02:15]} 18. dxc5 {[%clk 0:00:17]}  Qxd2 {[%clk 0:02:16]} 19. Rxd2 {[%clk 0:00:17]}  Rxd2 {[%clk 0:02:13]} 20. Bxd2 {[%clk 0:00:18]}  Bxc5 {[%clk 0:02:14]} 21. e3 {[%clk 0:00:12]}  Rd8 {[%clk 0:02:12]} 22. Ne4 {[%clk 0:00:06]}  Be7 {[%clk 0:02:05]} 23. Rc1 {[%clk 0:00:05]}  f5 {[%clk 0:01:56]} 24. Bxb4 {[%clk 0:00:04]}  axb4 {[%clk 0:01:57]} 0-1

[Event "January 9 Early 2024"]
[Site "https://www.chess.com"]
[Date "2024.01.11"]
[Round "7"]
[White "Isajevsky, Anton"]
[Black "Klekowski, Maciej"]
[Result "0-1"]
[Board "27"]
[TimeControl "180+1"]
[WhiteFideId "4142500"]
[BlackFideId "1132717"]
[WhiteElo "2644"]
[BlackElo "2866"]
[WhiteTeam "RUS"]
[BlackTeam "POL"]
[WhiteClock "0:00:32"]
[BlackClock "0:01:31"]

1. c4 {[%clk 0:03:00]}  e5 {[%clk 0:02:58]} 2. g3 {[%clk 0:03:00]}  Nc6 {[%clk 0:02:58]} 3. Bg2 {[%clk 0:03:00]}  f5 {[%clk 0:02:58]} 4. Nc3 {[%clk 0:03:00]}  Nf6 {[%clk 0:02:59]} 5. d3 {[%clk 0:02:53]}  Be7 {[%clk 0:02:59]} 6. Bg5 {[%clk 0:02:47]}  O-O {[%clk 0:02:59]} 7. Nf3 {[%clk 0:02:43]}  d6 {[%clk 0:02:59]} 8. O-O {[%clk 0:02:41]}  Qe8 {[%clk 0:02:58]} 9. Bxf6 {[%clk 0:02:38]}  Bxf6 {[%clk 0:02:58]} 10. Rc1 {[%clk 0:02:37]}  g5 {[%clk 0:02:57]} 11. Nd5 {[%clk 0:02:33]}  Bd8 {[%clk 0:02:56]} 12. c5 {[%clk 0:02:31]}  Be6 {[%clk 0:02:53]} 13. Nd2 {[%clk 0:02:26]}  Qf7 {[%clk 0:02:39]} 14. Nc3 {[%clk 0:01:38]}  d5 {[%clk 0:02:32]} 15. e4 {[%clk 0:01:30]}  dxe4 {[%clk 0:02:10]} 16. dxe4 {[%clk 0:01:30]}  f4 {[%clk 0:02:11]} 17. Nd5 {[%clk 0:01:15]}  h5 {[%clk 0:02:03]} 18. Nc4 {[%clk 0:01:09]}  f3 {[%clk 0:01:57]} 19. Bh1 {[%clk 0:01:07]}  g4 {[%clk 0:01:54]} 20. Qd2 {[%clk 0:01:05]}  Qg7 {[%clk 0:01:52]} 21. Nce3 {[%clk 0:00:51]}  Nd4 {[%clk 0:01:49]} 22. Rfe1 {[%clk 0:00:48]}  c6 {[%clk 0:01:42]} 23. Nc3 {[%clk 0:00:46]}  h4 {[%clk 0:01:43]} 24. Nf5 {[%clk 0:00:34]}  Bxf5 {[%clk 0:01:35]} 25. exf5 {[%clk 0:00:34]}  Bg5 {[%clk 0:01:33]} 26. Qd3 {[%clk 0:00:32]}  Bxc1 {[%clk 0:01:31]} 0-1

[Event "January 9 Early 2024"]
[Site "https://www.chess.com"]
[Date "2024.01.11"]
[Round "7"]
[White "Pesotskiy, Mikhail"]
[Black "Abrosimov, Vladimir"]
[Result "1-0"]
[Board "28"]
[TimeControl "180+1"]
[WhiteFideId "34164453"]
[BlackFideId "4166892"]
[WhiteElo "2479"]
[BlackElo "2170"]
[WhiteTeam "RUS"]
[BlackTeam "RUS"]
[WhiteClock "0:01:54"]
[BlackClock "0:01:39"]

1. d4 {[%clk 0:03:00]}  b5 {[%clk 0:02:40]} 2. e4 {[%clk 0:02:57]}  Bb7 {[%clk 0:02:40]} 3. Bd3 {[%clk 0:02:57]}  a6 {[%clk 0:02:39]} 4. Nf3 {[%clk 0:02:56]}  e6 {[%clk 0:02:40]} 5. O-O {[%clk 0:02:55]}  c5 {[%clk 0:02:39]} 6. c3 {[%clk 0:02:54]}  c4 {[%clk 0:02:38]} 7. Bc2 {[%clk 0:02:54]}  Nf6 {[%clk 0:02:39]} 8. e5 {[%clk 0:02:53]}  Nd5 {[%clk 0:02:38]} 9. Bg5 {[%clk 0:02:52]}  Be7 {[%clk 0:02:39]} 10. Bxe7 {[%clk 0:02:52]}  Qxe7 {[%clk 0:02:40]} 11. Nbd2 {[%clk 0:02:52]}  Nc6 {[%clk 0:02:40]} 12. Ne4 {[%clk 0:02:52]}  O-O-O {[%clk 0:02:35]} 13. Qe2 {[%clk 0:02:41]}  h6 {[%clk 0:02:29]} 14. a4 {[%clk 0:02:41]}  Nf4 {[%clk 0:02:28]} 15. Qd2 {[%clk 0:02:39]}  Nd5 {[%clk 0:02:24]} 16. axb5 {[%clk 0:02:39]}  axb5 {[%clk 0:02:25]} 17. Nd6+ {[%clk 0:02:38]}  Kb8 {[%clk 0:02:25]} 18. Nxb5 {[%clk 0:02:39]}  d6 {[%clk 0:02:20]} 19. Nxd6 {[%clk 0:02:37]}  Rxd6 {[%clk 0:02:20]} 20. exd6 {[%clk 0:02:38]}  Qxd6 {[%clk 0:02:21]} 21. b3 {[%clk 0:02:33]}  cxb3 {[%clk 0:02:16]} 22. Bxb3 {[%clk 0:02:34]}  g5 {[%clk 0:02:15]} 23. Rfb1 {[%clk 0:02:31]}  g4 {[%clk 0:02:14]} 24. Ne5 {[%clk 0:02:31]}  Nxe5 {[%clk 0:02:14]} 25. dxe5 {[%clk 0:02:32]}  Qxe5 {[%clk 0:02:11]} 26. Bxd5 {[%clk 0:02:26]}  exd5 {[%clk 0:02:12]} 27. Qa2 {[%clk 0:02:22]}  Qc7 {[%clk 0:02:12]} 28. Qa7+ {[%clk 0:02:17]}  Kc8 {[%clk 0:02:12]} 29. Ra5 {[%clk 0:02:18]}  Bc6 {[%clk 0:01:58]} 30. Qc5 {[%clk 0:02:18]}  Re8 {[%clk 0:01:54]} 31. Ra7 {[%clk 0:02:15]}  Bb7 {[%clk 0:01:33]} 32. Qxc7+ {[%clk 0:02:12]}  Kxc7 {[%clk 0:01:34]} 33. Raxb7+ {[%clk 0:02:13]}  Kc6 {[%clk 0:01:35]} 34. Rxf7 {[%clk 0:02:13]}  Kc5 {[%clk 0:01:34]} 35. Rf6 {[%clk 0:02:11]}  Kc4 {[%clk 0:01:34]} 36. Rxh6 {[%clk 0:02:07]}  Kxc3 {[%clk 0:01:35]} 37. Rd6 {[%clk 0:02:08]}  d4 {[%clk 0:01:34]} 38. Rd1 {[%clk 0:02:07]}  Re4 {[%clk 0:01:31]} 39. R6xd4 {[%clk 0:02:08]}  Rxd4 {[%clk 0:01:32]} 40. Rxd4 {[%clk 0:02:08]}  Kxd4 {[%clk 0:01:33]} 41. h3 {[%clk 0:02:09]}  g3 {[%clk 0:01:31]} 42. fxg3 {[%clk 0:02:07]}  Ke4 {[%clk 0:01:32]} 43. Kh2 {[%clk 0:02:07]}  Kf5 {[%clk 0:01:33]} 44. g4+ {[%clk 0:02:08]}  Kg5 {[%clk 0:01:34]} 45. g3 {[%clk 0:02:09]}  Kh6 {[%clk 0:01:33]} 46. Kg2 {[%clk 0:02:10]}  Kg6 {[%clk 0:01:34]} 47. Kf3 {[%clk 0:02:11]}  Kh6 {[%clk 0:01:35]} 48. h4 {[%clk 0:02:11]}  Kg7 {[%clk 0:01:36]} 49. Kf4 {[%clk 0:02:12]}  Kg6 {[%clk 0:01:37]} 50. g5 {[%clk 0:02:13]}  Kh7 {[%clk 0:01:38]} 51. g4 {[%clk 0:02:14]}  Kg7 {[%clk 0:01:39]} 52. h5 {[%clk 0:02:15]}  Kh7 {[%clk 0:01:40]} 53. Kf5 {[%clk 0:02:16]}  Kg7 {[%clk 0:01:41]} 54. g6 {[%clk 0:02:17]}  Kh8 {[%clk 0:01:40]} 55. g5 {[%clk 0:02:18]}  Kg8 {[%clk 0:01:41]} 56. h6 {[%clk 0:02:18]}  Kh8 {[%clk 0:01:41]} 57. Kf6 {[%clk 0:02:14]}  Kg8 {[%clk 0:01:41]} 58. g7 {[%clk 0:02:03]}  Kh7 {[%clk 0:01:40]} 59. g6+ {[%clk 0:01:54]}  Kg8 {[%clk 0:01:39]} 60. h7# {[%clk 0:01:54]} 1-0

[Event "January 9 Early 2024"]
[Site "https://www.chess.com"]
[Date "2024.01.11"]
[Round "7"]
[White "Bonin, Jay"]
[Black "Kopczynski, Michal"]
[Result "0-1"]
[Board "34"]
[TimeControl "180+1"]
[WhiteFideId "2000644"]
[BlackFideId "1124200"]
[WhiteElo "2325"]
[BlackElo "2524"]
[WhiteTeam "USA"]
[BlackTeam "POL"]
[WhiteClock "0:00:56"]
[BlackClock "0:01:18"]

1. d4 {[%clk 0:02:58]}  Nf6 {[%clk 0:02:59]} 2. Nf3 {[%clk 0:02:53]}  g6 {[%clk 0:03:00]} 3. c4 {[%clk 0:02:51]}  Bg7 {[%clk 0:03:00]} 4. Nc3 {[%clk 0:02:48]}  d6 {[%clk 0:03:01]} 5. e4 {[%clk 0:02:47]}  O-O {[%clk 0:03:02]} 6. Be2 {[%clk 0:02:44]}  e5 {[%clk 0:03:02]} 7. dxe5 {[%clk 0:02:42]}  dxe5 {[%clk 0:03:03]} 8. Qxd8 {[%clk 0:02:39]}  Rxd8 {[%clk 0:03:04]} 9. Nb1 {[%clk 0:02:39]}  Nxe4 {[%clk 0:03:00]} 10. O-O {[%clk 0:02:37]}  h6 {[%clk 0:02:57]} 11. Rd1 {[%clk 0:02:33]}  Rxd1+ {[%clk 0:02:55]} 12. Bxd1 {[%clk 0:02:32]}  Be6 {[%clk 0:02:55]} 13. Na3 {[%clk 0:02:30]}  a6 {[%clk 0:02:46]} 14. Be3 {[%clk 0:02:27]}  Nc6 {[%clk 0:02:45]} 15. Ba4 {[%clk 0:02:23]}  Nb4 {[%clk 0:02:40]} 16. Nd2 {[%clk 0:02:16]}  Nd6 {[%clk 0:02:28]} 17. Bc5 {[%clk 0:02:10]}  Nd3 {[%clk 0:02:28]} 18. Bxd6 {[%clk 0:02:05]}  cxd6 {[%clk 0:02:29]} 19. b3 {[%clk 0:02:00]}  e4 {[%clk 0:02:21]} 20. Rb1 {[%clk 0:01:55]}  Bb2 {[%clk 0:02:21]} 21. Nc2 {[%clk 0:01:48]}  f5 {[%clk 0:02:14]} 22. b4 {[%clk 0:01:39]}  Bc3 {[%clk 0:02:11]} 23. Nf1 {[%clk 0:01:29]}  Bxc4 {[%clk 0:02:10]} 24. Bb3 {[%clk 0:01:28]}  Bxb3 {[%clk 0:02:08]} 25. Rxb3 {[%clk 0:01:25]}  Rc8 {[%clk 0:02:06]} 26. f3 {[%clk 0:01:17]}  Nc1 {[%clk 0:01:56]} 27. Rb1 {[%clk 0:01:13]}  Nxa2 {[%clk 0:01:56]} 28. fxe4 {[%clk 0:01:11]}  fxe4 {[%clk 0:01:57]} 29. Kf2 {[%clk 0:01:09]}  Be5 {[%clk 0:01:55]} 30. Nfe3 {[%clk 0:01:05]}  Nc3 {[%clk 0:01:43]} 31. Rb3 {[%clk 0:01:03]}  d5 {[%clk 0:01:42]} 32. Ng4 {[%clk 0:01:00]}  Bg7 {[%clk 0:01:39]} 33. Ke3 {[%clk 0:01:00]}  Nb5 {[%clk 0:01:26]} 34. Ne1 {[%clk 0:00:57]}  h5 {[%clk 0:01:18]} 35. Nf2 {[%clk 0:00:56]} 0-1

[Event "January 9 Early 2024"]
[Site "https://www.chess.com"]
[Date "2024.01.11"]
[Round "7"]
[White "Mahdavi, Reza"]
[Black "Rakitin, Daniil"]
[Result "1-0"]
[Board "35"]
[TimeControl "180+1"]
[WhiteFideId "12595926"]
[BlackFideId "24219762"]
[WhiteElo "2864"]
[BlackElo "2681"]
[WhiteTeam "IRI"]
[BlackTeam "RUS"]
[WhiteClock "0:01:27"]
[BlackClock "0:00:31"]

1. e4 {[%clk 0:03:00]}  c5 {[%clk 0:02:59]} 2. Nf3 {[%clk 0:03:01]}  Nc6 {[%clk 0:03:00]} 3. d4 {[%clk 0:03:01]}  cxd4 {[%clk 0:03:00]} 4. Nxd4 {[%clk 0:03:02]}  Nf6 {[%clk 0:03:01]} 5. Nc3 {[%clk 0:03:02]}  d6 {[%clk 0:03:02]} 6. Bg5 {[%clk 0:03:00]}  e6 {[%clk 0:03:02]} 7. Qd3 {[%clk 0:02:57]}  a6 {[%clk 0:03:00]} 8. Nxc6 {[%clk 0:02:54]}  bxc6 {[%clk 0:03:00]} 9. Qg3 {[%clk 0:02:55]}  d5 {[%clk 0:02:52]} 10. O-O-O {[%clk 0:02:49]}  Qa5 {[%clk 0:02:44]} 11. Bd2 {[%clk 0:02:07]}  Qb6 {[%clk 0:01:49]} 12. Bd3 {[%clk 0:01:58]}  Bd7 {[%clk 0:00:54]} 13. Rhe1 {[%clk 0:01:55]}  d4 {[%clk 0:00:49]} 14. Na4 {[%clk 0:01:54]}  Qa7 {[%clk 0:00:49]} 15. b3 {[%clk 0:01:36]}  Ba3+ {[%clk 0:00:37]} 16. Kb1 {[%clk 0:01:36]}  O-O {[%clk 0:00:38]} 17. Qh4 {[%clk 0:01:29]}  c5 {[%clk 0:00:31]} 18. e5 {[%clk 0:01:27]} 1-0

[Event "January 9 Early 2024"]
[Site "https://www.chess.com"]
[Date "2024.01.11"]
[Round "7"]
[White "Costachi, Mihnea"]
[Black "Cuenca Jimenez, Jose Fernando"]
[Result "1-0"]
[Board "37"]
[TimeControl "180+1"]
[WhiteFideId "1217518"]
[BlackFideId "2255570"]
[WhiteElo "2868"]
[BlackElo "2683"]
[WhiteTeam "ROU"]
[BlackTeam "ESP"]
[WhiteClock "0:01:10"]
[BlackClock "0:00:56"]

1. Nc3 {[%clk 0:03:00]}  c5 {[%clk 0:02:59]} 2. Nf3 {[%clk 0:03:00]}  Nc6 {[%clk 0:02:58]} 3. g3 {[%clk 0:03:00]}  e5 {[%clk 0:02:57]} 4. Bg2 {[%clk 0:03:00]}  g6 {[%clk 0:02:56]} 5. O-O {[%clk 0:03:00]}  Bg7 {[%clk 0:02:56]} 6. d3 {[%clk 0:03:00]}  Nge7 {[%clk 0:02:56]} 7. e4 {[%clk 0:02:58]}  O-O {[%clk 0:02:56]} 8. Be3 {[%clk 0:02:51]}  d6 {[%clk 0:02:57]} 9. Qd2 {[%clk 0:02:52]}  f5 {[%clk 0:02:54]} 10. Bh6 {[%clk 0:02:49]}  f4 {[%clk 0:02:52]} 11. Bxg7 {[%clk 0:02:49]}  Kxg7 {[%clk 0:02:53]} 12. Ne2 {[%clk 0:02:43]}  fxg3 {[%clk 0:02:36]} 13. fxg3 {[%clk 0:02:44]}  h6 {[%clk 0:02:34]} 14. Rf2 {[%clk 0:02:37]}  Bg4 {[%clk 0:02:34]} 15. Raf1 {[%clk 0:02:36]}  Qd7 {[%clk 0:02:30]} 16. Nc3 {[%clk 0:02:20]}  Bxf3 {[%clk 0:02:27]} 17. Rxf3 {[%clk 0:02:18]}  Rxf3 {[%clk 0:02:27]} 18. Rxf3 {[%clk 0:02:16]}  Nd4 {[%clk 0:02:26]} 19. Rf1 {[%clk 0:02:17]}  g5 {[%clk 0:02:23]} 20. Nd1 {[%clk 0:02:15]}  Rf8 {[%clk 0:02:21]} 21. Rxf8 {[%clk 0:02:13]}  Kxf8 {[%clk 0:02:21]} 22. c3 {[%clk 0:02:13]}  Ndc6 {[%clk 0:02:22]} 23. Ne3 {[%clk 0:02:12]}  Qe6 {[%clk 0:02:21]} 24. b3 {[%clk 0:02:05]}  b5 {[%clk 0:02:20]} 25. Nf5 {[%clk 0:02:04]}  b4 {[%clk 0:02:13]} 26. Bh3 {[%clk 0:01:42]}  bxc3 {[%clk 0:02:08]} 27. Qxc3 {[%clk 0:01:43]}  Qf6 {[%clk 0:02:04]} 28. Qc4 {[%clk 0:01:36]}  Nxf5 {[%clk 0:02:00]} 29. Bxf5 {[%clk 0:01:37]}  Nd4 {[%clk 0:01:50]} 30. g4 {[%clk 0:01:36]}  h5 {[%clk 0:01:36]} 31. Qa6 {[%clk 0:01:22]}  Qe7 {[%clk 0:01:15]} 32. gxh5 {[%clk 0:01:18]}  Kg7 {[%clk 0:01:08]} 33. Qc8 {[%clk 0:01:17]}  Qf7 {[%clk 0:01:03]} 34. h6+ {[%clk 0:01:15]}  Kf6 {[%clk 0:00:56]} 35. Qd8+ {[%clk 0:01:10]} 1-0